bitfinex/quotes_ETHUSD_20241204
["timestamp","ask_amount","ask_price","bid_price","bid_amount"]
[1733326523022,0.2,3848.7,3846.8,0.51200938]
[1733326523217,0.025982,3848.6,3847.6,2.59897]
[1733326523567,0.2,3848.3,3846.4,2.5998]
[1733326523861,0.025982,3848.2,3846.0,1.5987]
[1733326524044,16.1228574,3849.0,3846.3,2.5999]
[1733326524257,14.91161464,3849.0,3848.9,2.59814]
[1733326525050,16.44231464,3849.0,3848.9,2.59814]
[1733326525246,16.44231464,3849.0,3848.9,5.85456508]
[1733326525448,14.91161464,3849.0,3848.9,5.85456508]
[1733326527847,18.24161464,3849.0,3848.9,5.85456508]
[1733326528275,11.74641464,3849.0,3848.9,7.47736508]
[1733326528547,11.74641464,3849.0,3848.9,5.85456508]
[1733326529270,9.14833464,3849.0,3848.9,2.85456508]
[1733326530713,9.14833464,3849.0,3848.9,0.25642508]
[1733326530714,10.71543464,3849.0,3848.9,0.25642508]
[1733326530853,10.71543464,3849.0,3847.4,4.15085]
[1733326530854,14.92099077,3849.0,3847.4,1.5517]
[1733326531054,12.47833464,3849.0,3848.9,2.59814]
[1733326531680,12.47833464,3849.0,3848.9,2.85824]
[1733326532084,12.47833464,3849.0,3848.9,2.59814]
[1733326532462,12.47833464,3849.0,3848.9,5.59814]
[1733326533296,15.80833464,3849.0,3848.9,5.59814]
[1733326534086,15.80833464,3849.0,3848.9,5.85723121]
[1733326534541,9.31313464,3849.0,3848.9,5.85723121]
[1733326534841,9.31313464,3849.0,3848.9,7.70713121]
[1733326535006,8.01423464,3849.0,3848.9,7.70713121]
[1733326535213,4.11739464,3849.0,3848.9,7.70713121]
[1733326535420,2.81835464,3849.0,3848.9,7.70713121]
[1733326535826,6.14835464,3849.0,3848.9,7.70713121]
[1733326536218,0.95219464,3849.0,3848.9,6.11733121]
[1733326536533,4.64e-06,3849.0,3848.9,6.11733121]
[1733326537456,7.26096674,3849.1,3849.0,5.85813]
[1733326537652,5.96196674,3849.1,3849.0,5.85813]
[1733326538166,5.96196674,3849.1,3849.0,2.59803]
[1733326539472,5.96196674,3849.1,3849.0,5.59803]
[1733326540429,8.95762538,3849.1,3848.9,0.25909121]
[1733326540672,8.95762538,3849.1,3847.5,2.59902]
[1733326540673,8.95762538,3849.1,3848.2,2.59857]
[1733326540825,8.95762538,3849.1,3848.7,2.59825]
[1733326541032,8.95762538,3849.1,3847.5,2.59909]
[1733326541227,7.57806674,3849.1,3848.9,2.59811]
[1733326541669,7.57806674,3849.1,3849.0,0.2601]
[1733326541868,5.57806674,3849.1,3849.0,0.2601]
[1733326542456,3.98794874,3849.1,3848.7,0.2601]
[1733326542673,1.8504,3849.0,3846.9,2.59947]
[1733326542876,3.98794874,3849.1,3846.5,1.7374]
[1733326542877,1.6504,3848.5,3846.5,1.76338885]
[1733326543174,1.6593,3848.3,3846.8,2.59954]
[1733326543386,0.50920948,3847.6,3847.3,0.2601]
[1733326543673,1.6593,3847.5,3847.4,2.85919]
[1733326543832,1.6593,3847.5,3847.4,0.2601]
[1733326544258,1.56558892,3847.5,3847.4,0.2601]
[1733326544572,1.56558892,3847.5,3847.2,0.2601]
[1733326545131,1.56558892,3847.5,3847.4,3.0]
[1733326545559,1.56558892,3847.5,3847.3,0.2601]
[1733326545794,1.56558892,3847.5,3847.4,2.59915]
[1733326545971,1.56558892,3847.5,3847.4,2.85925]
[1733326546174,0.50997079,3848.3,3848.0,2.85882]
[1733326546378,0.2,3848.1,3846.2,3.11055429]
[1733326546541,0.025982,3848.0,3846.2,2.59996]
[1733326546747,2.59828,3848.7,3845.9,2.85780447]
[1733326546748,0.78758016,3848.8,3847.8,2.59888]
[1733326547045,10.43142965,3849.4,3848.7,0.2]
[1733326547046,7.83361965,3849.4,3848.7,0.2]
[1733326547286,0.79696674,3849.1,3849.0,2.59807]
[1733326547543,0.79696674,3849.1,3849.0,5.59807]
[1733326548164,2.63802639,3849.4,3849.3,2.89787]
[1733326548459,2.63802639,3849.4,3849.3,5.89787]
[1733326549189,0.04022639,3849.4,3849.3,5.89787]
[1733326549396,6.39e-06,3849.4,3849.3,5.84787]
[1733326549921,6.39e-06,3849.4,3849.3,6.11141994]
[1733326551008,7.00165805,3849.7,3849.6,5.84767]
[1733326551310,0.50825805,3849.7,3849.6,5.84767]
[1733326552104,3.54721026,3850.0,3849.9,5.84747]
[1733326552421,0.95073907,3850.0,3849.9,7.38657]
[1733326553107,2.29078392,3850.3,3850.2,2.84726]
[1733326553330,2.29078392,3850.3,3850.2,5.84726]
[1733326553682,2.29078392,3850.3,3850.2,7.36296]
[1733326554109,3.92e-06,3850.5,3850.4,2.59713]
[1733326554314,3.82e-06,3850.8,3850.7,3.15]
[1733326554584,3.82e-06,3851.0,3850.9,5.84679]
[1733326554822,3.82e-06,3851.0,3850.9,5.74679]
[1733326556281,7.82448485,3851.2,3850.9,5.74679]
[1733326556282,6.52618867,3851.2,3851.1,5.69666]
[1733326556483,3.92958867,3851.2,3851.1,5.69666]
[1733326557228,8.67e-06,3851.2,3851.1,7.33776]
[1733326557429,8.67e-06,3851.2,3851.1,8.31908498]
[1733326557586,8.67e-06,3851.2,3851.1,8.70410192]
[1733326557892,2.16823933,3853.1,3851.2,8.90403192]
[1733326557893,8.73045021,3851.3,3851.2,8.90403192]
[1733326558108,1.87189021,3851.3,3851.2,8.90403192]
[1733326558282,7.81948485,3853.9,3852.0,12.28955]
[1733326558487,6.79793386,3852.1,3852.0,22.57947277]
[1733326558683,3.86060684,3852.1,3852.0,21.23597277]
[1733326558884,11.21311709,3852.3,3852.2,8.7]
[1733326559092,11.21311709,3852.3,3852.2,9.8337811]
[1733326559093,4.72466709,3852.3,3852.2,9.8337811]
[1733326559295,27.59895039,3853.0,3852.9,10.74544]
[1733326559541,22.90115487,3853.0,3852.9,20.98226276]
[1733326559826,19.33956468,3853.0,3852.9,20.98226276]
[1733326560184,12.85248468,3853.0,3852.9,20.20566027]
[1733326560502,11.21410693,3853.0,3852.9,20.97541276]
[1733326560857,11.21410693,3853.0,3852.9,21.52541276]
[1733326561046,8.20082175,3853.0,3852.9,21.52541276]
[1733326561325,12.20749285,3853.4,3853.3,11.29517]
[1733326561537,12.20749285,3853.4,3853.3,20.49091749]
[1733326561740,15.09463382,3853.4,3853.3,0.33640568]
[1733326561887,15.09463382,3853.4,3852.9,0.79005273]
[1733326561888,0.15,3853.3,3852.9,0.26472704]
[1733326562084,13.87239285,3853.4,3853.1,2.59528]
[1733326562325,12.20749285,3853.4,3853.2,2.5952]
[1733326562636,12.20749285,3853.4,3852.8,2.59549]
[1733326562637,0.15,3853.0,3852.8,2.59549]
[1733326562925,12.20749285,3853.4,3851.4,7.5964]
[1733326562926,12.20749285,3853.4,3853.2,2.59522]
[1733326563097,8.31481285,3853.4,3853.3,0.1]
[1733326563297,7.01729285,3853.4,3853.3,0.1]
[1733326563515,5.71977285,3853.4,3853.3,0.1]
[1733326563826,5.71977285,3853.4,3853.3,8.65]
[1733326564187,9.67e-06,3853.5,3853.4,6.14511]
[1733326564389,9.67e-06,3853.5,3853.4,6.20442681]
[1733326564661,9.67e-06,3853.5,3853.4,15.27742681]
[1733326564868,9.67e-06,3853.5,3853.4,16.22293212]
[1733326565027,5.22471452,3853.9,3853.8,5.1]
[1733326565234,1.33254452,3853.9,3853.8,20.77424548]
[1733326565540,1.33254452,3853.9,3853.8,11.6005064]
[1733326565853,1.33254452,3853.9,3853.8,11.30415066]
[1733326566050,1.33254452,3853.9,3853.8,10.75415066]
[1733326566378,1.33254452,3853.9,3853.8,6.0067653]
[1733326566733,4.52e-06,3853.9,3853.8,6.0067653]
[1733326568050,4.52e-06,3853.9,3853.8,5.9067653]
[1733326568254,4.52e-06,3853.9,3853.8,2.9067653]
[1733326568764,4.52e-06,3853.9,3853.8,0.3119253]
[1733326569289,4.52e-06,3853.9,3853.8,0.05931066]
[1733326569469,0.31694497,3853.9,3852.5,0.02594658]
[1733326569677,4.52e-06,3853.9,3853.8,2.59484]
[1733326569983,0.15,3854.2,3854.1,2.59463]
[1733326570147,0.15,3854.0,3853.3,0.02594331]
[1733326570328,0.15,3854.0,3853.2,0.02594253]
[1733326570529,0.15,3854.0,3853.6,2.59491]
[1733326570832,0.15,3853.4,3852.8,3.02594352]
[1733326571056,0.15,3853.4,3852.1,6.0604]
[1733326571057,0.15,3853.1,3852.4,0.1]
[1733326571364,0.15,3853.1,3852.3,0.02594649]
[1733326571365,0.15,3852.4,3852.3,0.02594649]
[1733326571543,0.15,3852.4,3851.4,0.1]
[1733326571754,0.15,3852.4,3851.5,0.02595398]
[1733326571957,0.15,3852.0,3851.4,0.1]
[1733326574081,1.5669,3851.6,3850.9,0.2]
[1733326574243,1.5704,3852.3,3851.4,2.89645]
[1733326574444,1.5704,3852.3,3851.6,0.2]
[1733326574669,1.5704,3852.3,3851.4,2.79644]
[1733326574984,1.5704,3852.3,3850.9,2.62268683]
[1733326574985,1.5704,3852.3,3851.6,0.2]
[1733326575145,1.5704,3852.3,3851.7,2.5962]
[1733326575345,1.5704,3852.3,3851.8,2.59618]
[1733326575579,1.5704,3852.3,3851.3,0.1]
[1733326575785,1.5704,3852.3,3851.6,3.0]
[1733326575953,1.5704,3852.3,3851.7,0.2]
[1733326576158,1.5704,3852.3,3851.8,3.0]
[1733326576410,1.5704,3852.3,3851.4,0.2]
[1733326576567,1.72744,3852.3,3851.3,0.25755856]
[1733326576746,1.72744,3852.3,3851.4,0.3]
[1733326576747,1.5704,3852.3,3851.4,0.3]
[1733326576949,10.42619485,3854.8,3852.0,0.2]
[1733326576950,1.6474,3853.4,3852.0,0.2]
[1733326577155,1.6474,3853.4,3851.7,2.79624]
[1733326577370,1.6474,3853.4,3851.7,0.2]
[1733326577746,1.6571,3853.2,3851.3,3.0]
[1733326578085,1.6545,3853.0,3851.8,3.0]
[1733326578250,1.6545,3852.9,3851.2,0.26539935]
[1733326578454,0.52786699,3852.8,3852.4,0.2]
[1733326578648,1.6163,3854.6,3852.7,3.1]
[1733326578853,0.53129166,3854.5,3853.4,3.0]
[1733326579057,0.2309815,3854.4,3853.4,3.0]
[1733326579600,0.2309815,3854.4,3853.0,0.2]
[1733326579601,0.2309815,3854.4,3853.2,2.59524]
[1733326579860,0.2309815,3854.4,3853.0,3.0]
[1733326580152,0.2309815,3854.4,3852.3,0.1]
[1733326580153,1.6163,3853.8,3852.3,0.1]
[1733326580311,1.1163,3853.8,3852.3,3.0]
[1733326580514,1.1163,3853.8,3852.3,3.1]
[1733326580860,1.487394,3853.8,3852.8,0.1]
[1733326581014,1.1163,3853.8,3852.8,2.59549]
[1733326581214,1.1163,3853.8,3853.0,3.0]
[1733326581840,1.1163,3853.8,3852.4,2.85346924]
[1733326582046,0.2309815,3854.4,3851.6,0.1]
[1733326582248,0.2309815,3854.4,3851.1,0.3]
[1733326582249,2.59502,3853.6,3851.1,0.3]
[1733326582416,0.55,3853.4,3851.1,2.5966]
[1733326582620,0.55,3853.4,3851.2,2.59659]
[1733326582818,2.2948,3854.1,3851.5,0.1]
[1733326582819,0.50991338,3852.9,3851.5,0.1]
[1733326583131,0.50991338,3852.9,3851.7,2.5962]
[1733326583327,1.6313,3852.8,3850.9,0.2]
[1733326583545,0.50991338,3852.9,3850.9,0.2]
[1733326583546,1.6313,3852.6,3851.3,2.59651]
[1733326583858,1.6313,3852.6,3850.8,2.59685]
[1733326584013,1.6313,3852.6,3850.8,0.1]
[1733326584211,1.6313,3852.6,3850.3,0.02596409]
[1733326584212,1.6313,3852.6,3850.3,0.2]
[1733326584522,0.21412134,3852.7,3850.9,0.2]
[1733326584523,0.51484171,3852.0,3850.9,0.2]
[1733326584714,1.6424,3851.9,3850.9,0.2]
[1733326584915,0.51484171,3852.0,3849.3,1.5588]
[1733326584916,1.6424,3851.7,3849.4,0.2]
[1733326585167,1.5877,3851.5,3849.5,0.1]
[1733326585376,1.5877,3851.5,3850.0,2.59739]
[1733326585667,2.39962417,3851.8,3850.0,2.59738]
[1733326585839,0.23996242,3851.7,3850.1,2.59733]
[1733326586044,0.51852619,3851.5,3850.3,2.59718]
[1733326586249,0.51852619,3851.5,3850.0,2.59735]
[1733326586475,0.51852619,3851.5,3849.8,2.59753]
[1733326586759,2.59646,3851.4,3849.5,2.59768]
[1733326587064,2.59534,3853.1,3850.6,0.1]
[1733326587232,2.2696,3853.6,3851.3,0.1]
[1733326587437,0.52221068,3853.4,3852.0,0.1]
[1733326587767,2.59453,3854.3,3852.4,2.59576]
[1733326587967,0.28255115,3854.2,3852.3,0.1]
[1733326588263,7.83198485,3854.8,3852.3,0.1]
[1733326588264,0.51214321,3853.9,3852.3,0.1]
[1733326588425,0.51214321,3853.9,3852.6,3.0]
[1733326588624,1.5508,3853.8,3851.9,2.59605]
[1733326588824,1.5508,3853.7,3851.2,2.59659]
[1733326589068,1.5508,3853.4,3851.1,0.1]
[1733326589272,0.50627918,3852.7,3851.3,2.59649]
[1733326589471,1.5508,3852.6,3851.0,2.59666]
[1733326589773,1.5003,3852.4,3850.5,0.2644674]
[1733326589977,1.5003,3852.4,3851.3,2.59652]
[1733326590328,1.5003,3852.4,3850.9,2.59679]
[1733326590662,1.5003,3852.4,3851.4,2.59643]
[1733326590865,1.5003,3852.4,3850.6,0.25745783]
[1733326591067,1.5003,3852.4,3850.9,2.59678]
[1733326591289,1.5003,3852.4,3850.6,0.1]
[1733326591572,1.5003,3852.4,3850.9,2.59678]
[1733326591869,0.20072538,3852.3,3850.9,2.59678]
[1733326592026,1.6605,3852.2,3850.7,0.257458]
[1733326592379,1.6605,3852.2,3850.7,3.257458]
[1733326592557,1.6605,3852.2,3850.9,2.59676]
[1733326592763,1.6605,3852.2,3850.8,2.59686]
[1733326592928,1.5206,3852.0,3849.7,0.1]
[1733326593131,1.5206,3851.8,3849.8,0.02597225]
[1733326593332,1.5206,3851.8,3850.1,0.1]
[1733326593681,1.5206,3851.8,3851.5,2.59637]
[1733326593833,1.5206,3851.8,3850.2,0.1]
[1733326594028,1.5206,3851.8,3849.9,2.59742]
[1733326594029,1.5206,3851.8,3851.2,2.59652]
[1733326594334,1.5206,3851.8,3850.2,2.59721]
[1733326594719,1.5206,3851.8,3849.3,0.2]
[1733326594720,1.6305,3851.7,3849.3,0.1]
[1733326594878,1.604,3851.5,3849.3,2.59782]
[1733326595185,1.604,3851.4,3850.0,0.1]
[1733326595476,2.1144466,3851.4,3850.2,2.59721]
[1733326595656,2.1144466,3851.4,3850.2,2.59726]
[1733326595860,2.1144466,3851.4,3849.6,2.59767]
[1733326596074,2.1144466,3851.4,3850.0,0.1]
[1733326596232,2.1144466,3851.4,3850.7,2.59692]
[1733326596435,2.1144466,3851.4,3850.8,3.0]
[1733326596636,1.604,3851.4,3851.3,2.59652]
[1733326596874,1.604,3851.4,3851.3,5.59652]
[1733326599362,1.6042,3852.1,3851.6,2.59628]
[1733326599561,1.6042,3852.1,3851.7,3.0]
[1733326599945,1.6042,3852.1,3850.9,0.1]
[1733326600137,1.6042,3852.1,3851.1,3.0]
[1733326600337,1.6042,3852.1,3849.8,2.7975]
[1733326600338,1.5732,3851.7,3849.8,2.59753]
[1733326600592,1.5084,3851.4,3849.2,0.1]
[1733326600881,2.59672,3851.0,3849.4,2.5978]
[1733326601082,1.5084,3850.9,3849.2,0.1]
[1733326601285,1.5155,3850.1,3848.9,2.5981]
[1733326601467,1.5155,3850.1,3849.2,0.1]
[1733326601653,1.5155,3850.1,3849.8,3.0]
[1733326601996,1.5155,3850.1,3848.3,0.1]
[1733326602195,1.5155,3850.1,3849.1,2.598]
[1733326602341,1.5352,3849.9,3848.1,0.25644405]
[1733326602546,1.5352,3849.8,3848.5,2.59841]
[1733326602744,1.5352,3849.8,3849.7,2.5976]
[1733326603193,1.5352,3849.8,3849.4,2.59775]
[1733326603360,1.5352,3849.8,3848.8,2.59817]
[1733326603690,1.5352,3849.8,3848.4,1.29261645]
[1733326603838,2.05975765,3849.8,3848.9,2.5981]
[1733326604190,1.6217,3849.7,3848.1,0.1]
[1733326604481,1.6217,3849.7,3848.5,2.5984]
[1733326604702,1.6217,3849.7,3847.4,0.3]
[1733326604917,1.6217,3850.7,3849.8,2.59749]
[1733326605124,1.6217,3850.7,3848.8,0.2]
[1733326605125,0.52910794,3850.6,3848.8,0.2]
[1733326605270,0.52910794,3850.6,3847.5,1.88747083]
[1733326605271,1.6217,3850.5,3849.5,0.1]
[1733326605634,1.6217,3850.5,3848.7,2.59826]
[1733326605776,1.6217,3850.3,3848.8,0.26044855]
[1733326606125,0.52043489,3850.2,3849.0,3.0]
[1733326606270,0.52043489,3850.2,3849.4,3.0]
[1733326606467,0.52043489,3850.2,3849.3,2.59787]
[1733326606670,1.6217,3850.1,3849.4,3.0]
[1733326606872,1.6217,3850.1,3849.9,2.5974]
[1733326607119,1.6217,3850.1,3848.9,0.360449]
[1733326607316,1.6217,3850.1,3850.0,2.5974]
[1733326607616,1.6217,3850.1,3849.7,2.59755]
[1733326607791,1.6217,3850.1,3849.6,2.59765]
[1733326607986,1.6217,3850.1,3849.1,3.0]
[1733326608213,1.6217,3850.1,3849.0,0.1]
[1733326608417,1.6217,3850.1,3849.5,2.5977]
[1733326608617,1.6217,3850.1,3848.9,0.260449]
[1733326608618,1.6217,3850.1,3848.6,0.25487676]
[1733326608786,1.6217,3850.1,3849.2,2.59792]
[1733326608984,1.6217,3850.1,3848.6,0.1]
[1733326609323,0.53092564,3849.8,3848.6,0.1]
[1733326609619,1.6242,3849.7,3849.6,2.59767]
[1733326609829,6.66,3851.8,3850.2,2.5972]
[1733326609830,1.6242,3851.7,3850.2,2.5972]
[1733326610027,1.6242,3851.5,3850.4,2.59713]
[1733326610236,1.6242,3850.3,3850.2,2.59726]
[1733326610996,1.6242,3850.3,3850.2,5.59726]
[1733326611345,1.6239,3851.5,3851.4,2.59645]
[1733326611549,1.6239,3851.5,3851.4,5.59645]
[1733326611716,9.99,3851.8,3851.7,5.69625]
[1733326612325,3.49968,3851.8,3851.7,5.89625]
[1733326612843,3.49968,3851.8,3851.7,5.59625]
[1733326613916,1.6436,3851.7,3851.6,2.59625]
[1733326614152,1.6436,3851.7,3851.6,5.59625]
[1733326614445,1.6436,3851.7,3851.3,2.59646]
[1733326614601,4.9736,3851.7,3850.8,0.1]
[1733326614806,4.9736,3851.7,3850.8,0.35782508]
[1733326615113,4.9736,3851.7,3851.3,2.59648]
[1733326615320,5.820928,3851.7,3851.1,2.5966]
[1733326615555,5.820928,3851.7,3850.4,0.2]
[1733326615556,1.5871,3851.6,3850.4,2.59712]
[1733326615845,4.177328,3851.7,3850.2,0.1]
[1733326615846,1.5871,3851.3,3850.2,0.1]
[1733326616044,1.5871,3851.3,3850.9,2.59679]
[1733326616204,1.79811713,3851.3,3850.2,0.1]
[1733326616402,1.79811713,3851.3,3850.7,2.5969]
[1733326616840,1.79811713,3851.3,3850.2,0.1]
[1733326617048,1.79811713,3851.3,3850.7,2.59688]
[1733326617463,1.79811713,3851.3,3849.7,2.59754]
[1733326617464,1.79811713,3851.3,3849.7,5.1952]
[1733326617689,1.79811713,3851.3,3850.2,0.1]
[1733326617690,1.5871,3851.1,3850.2,0.1]
[1733326618297,1.5871,3851.1,3851.0,5.59672]
[1733326618602,3.33,3851.4,3851.3,5.59652]
[1733326618974,3.33,3851.4,3851.3,5.69652]
[1733326619170,3.33,3851.4,3851.3,5.59652]
[1733326619388,3.33,3851.4,3850.8,3.0]
[1733326619555,3.33,3851.4,3851.3,2.59652]
[1733326619760,3.33,3851.4,3851.1,2.59665]
[1733326620062,3.33,3851.4,3851.2,2.59659]
[1733326620458,3.33,3851.4,3851.2,2.59656]
[1733326620655,3.33,3851.4,3850.9,2.59672]
[1733326620904,3.33,3851.4,3850.2,2.59722]
[1733326620905,1.5721,3851.3,3850.2,2.59722]
[1733326621120,1.5721,3851.3,3850.4,0.1]
[1733326621327,7.53541869,3851.4,3849.9,0.2]
[1733326621328,3.0172,3851.2,3849.9,0.25573069]
[1733326621500,2.597,3850.6,3848.6,2.59834]
[1733326621675,1.5813,3850.2,3848.7,2.59825]
[1733326622001,1.5813,3849.2,3848.1,2.59868]
[1733326622319,1.5813,3849.2,3847.4,0.1]
[1733326622537,1.5813,3849.2,3846.6,1.5929]
[1733326622538,2.4672,3848.8,3846.1,1.5439]
[1733326622816,0.51321322,3848.2,3847.5,2.59908]
[1733326622976,1.556,3848.1,3847.5,2.59908]
[1733326623326,1.7116,3848.1,3847.3,2.5992]
[1733326623533,1.7116,3848.1,3846.4,2.59983]
[1733326623737,1.7116,3848.1,3846.1,1.5439]
[1733326623738,1.7116,3848.1,3846.1,1.79768764]
[1733326623875,1.556,3848.1,3846.9,3.0]
[1733326624214,1.556,3848.1,3847.9,2.59881]
[1733326624813,1.6499,3849.5,3849.3,2.59786]
[1733326625191,1.6499,3849.5,3847.7,3.0]
[1733326625394,1.5353,3849.3,3848.3,3.0]
[1733326625650,4.0832,3849.2,3848.3,3.0]
[1733326625807,1.6543,3849.1,3847.9,3.0]
[1733326626198,1.6543,3849.1,3848.4,2.59844]
[1733326626494,1.6543,3849.1,3848.1,3.0]
[1733326626719,1.6543,3849.1,3848.6,2.59833]
[1733326626920,0.51096615,3849.0,3848.8,2.59816]
[1733326627131,1.6543,3849.1,3849.0,2.59807]
[1733326627732,1.6543,3849.1,3848.3,0.26023487]
[1733326627949,1.6543,3849.1,3848.3,3.0]
[1733326628110,1.6543,3849.1,3847.7,2.59895]
[1733326628312,1.6543,3849.1,3848.0,3.0]
[1733326628684,0.21313,3850.1,3848.6,2.59834]
[1733326628685,9.36e-06,3848.7,3848.6,2.59834]
[1733326628951,1.5295,3850.1,3849.9,2.59744]
[1733326629622,1.5295,3850.1,3848.8,1.039212]
[1733326629816,1.5295,3850.1,3849.5,2.59773]
[1733326630056,1.73357779,3850.1,3849.9,2.59744]
[1733326630359,1.5295,3850.1,3849.9,2.59744]
[1733326630653,1.5295,3850.1,3847.9,2.59882]
[1733326630820,1.6222,3849.8,3848.4,2.59846]
[1733326631005,2.369,3850.0,3846.2,1.5925]
[1733326631006,1.6222,3849.2,3846.2,1.5925]
[1733326631205,1.83742332,3849.1,3848.0,2.59873]
[1733326631636,0.52095665,3848.5,3848.1,2.59866]
[1733326631837,1.6628,3848.4,3846.5,2.59972]
[1733326632147,1.6628,3848.4,3848.1,2.59864]
[1733326632394,1.6628,3848.4,3846.2,1.84763806]
[1733326632648,1.5403,3849.3,3846.4,1.6556]
[1733326632855,1.5403,3849.3,3848.7,2.59827]
[1733326633008,1.5403,3849.3,3847.5,2.59909]
[1733326633208,1.5403,3849.3,3847.4,1.5404]
[1733326633209,1.5403,3849.3,3849.2,2.59794]
[1733326633604,17.52541869,3851.4,3848.2,2.59857]
[1733326633605,0.52183936,3850.5,3849.7,3.0]
[1733326633920,17.52541869,3851.4,3850.4,2.59713]
[1733326634262,17.52541869,3851.4,3849.9,3.0]
[1733326634410,17.52541869,3851.4,3849.7,3.0]
[1733326634411,0.50756017,3851.0,3849.7,3.0]
[1733326634766,17.52541869,3851.4,3850.2,3.0]
[1733326634913,17.52541869,3851.4,3851.2,2.59658]
[1733326635118,1.80430522,3851.3,3851.0,2.59672]
[1733326635637,1.80430522,3851.3,3850.4,2.59707]
[1733326635638,1.80430522,3851.3,3850.9,2.59675]
[1733326635808,1.80430522,3851.3,3850.0,5.59739]
[1733326636010,0.55,3851.2,3850.2,2.59723]
[1733326636237,0.55,3851.2,3848.9,2.59809]
[1733326636238,0.55,3851.2,3849.4,3.0]
[1733326636456,0.55,3851.0,3849.8,3.0]
[1733326636638,1.5168,3850.8,3849.4,2.59774]
[1733326636880,1.5168,3850.8,3848.2,1.5194]
[1733326636881,2.0668,3850.2,3848.5,2.59841]
[1733326637236,2.0668,3850.2,3848.2,1.77451215]
[1733326637237,2.0668,3850.2,3849.5,2.5977]
[1733326637542,1.5168,3850.2,3848.3,0.02598039]
[1733326637742,1.5168,3850.2,3850.1,2.59733]
[1733326638145,1.5168,3850.2,3850.1,5.59733]
[1733326638454,1.5833,3850.8,3850.7,2.59693]
[1733326639069,1.5833,3850.8,3850.1,3.0]
[1733326639293,1.5833,3850.8,3850.3,2.59719]
[1733326639589,0.15833,3850.7,3849.8,3.0]
[1733326639746,1.6645,3850.5,3849.9,3.0]
[1733326639951,0.55,3850.4,3849.7,4.0]
[1733326640303,1.6645,3850.3,3849.7,1.0]
[1733326640478,1.6645,3850.3,3850.2,2.59726]
[1733326641394,1.653,3851.3,3850.3,3.0]
[1733326641563,0.3663405,3850.9,3850.3,3.0]
[1733326641753,0.3663405,3850.9,3850.4,2.5971]
[1733326642086,0.3663405,3850.9,3850.5,2.59706]
[1733326642247,0.3663405,3850.9,3849.7,1.25335208]
[1733326642448,1.91784187,3851.2,3850.1,3.0]
[1733326642670,1.91784187,3851.2,3849.7,1.25335208]
[1733326642874,0.50901746,3851.0,3850.8,2.59685]
[1733326643085,1.91784187,3851.2,3850.0,2.5974]
[1733326643285,20.85541869,3851.4,3849.7,1.25335208]
[1733326643286,20.85541869,3851.4,3850.3,3.0]
[1733326643500,0.52931586,3851.3,3850.9,2.59673]
[1733326643722,1.6395,3851.2,3849.7,1.25335208]
[1733326644007,1.6395,3851.2,3850.4,2.59707]
[1733326644214,3.33,3850.1,3850.0,5.59735]
[1733326644940,17.91285586,3851.4,3851.3,7.18792]
[1733326645211,11.42170586,3851.4,3851.3,7.44752]
[1733326645510,11.42170586,3851.4,3851.3,7.18792]
[1733326646123,8.82544586,3851.4,3851.3,7.44752]
[1733326646258,4.93105586,3851.4,3851.3,7.18792]
[1733326646462,4.93105586,3851.4,3851.3,5.59652]
[1733326647077,4.93105586,3851.4,3851.3,5.85929881]
[1733326647276,1.77130586,3851.7,3851.6,2.59632]
[1733326647505,1.77130586,3851.7,3851.6,5.59632]
[1733326647713,1.77130586,3851.7,3851.6,7.24642]
[1733326648117,3.49968,3851.8,3851.6,7.24642]
[1733326648118,1.37777517,3851.8,3851.7,7.24635]
[1733326648415,6.17621517,3852.1,3852.0,5.59605]
[1733326648619,7.82441517,3852.1,3840.3,9.49970664]
[1733326648826,2.59653,3851.3,3849.7,1.0]
[1733326648985,0.3117,3851.1,3849.7,1.0]
[1733326649312,0.3117,3851.1,3848.8,2.59814]
[1733326649313,0.3117,3850.1,3847.3,1.6625]
[1733326649513,0.3117,3849.7,3847.3,1.6625]
[1733326649684,0.55,3849.2,3845.8,2.60023]
[1733326649885,0.55,3849.2,3846.1,2.60003]
[1733326649886,1.54,3848.9,3846.1,2.60003]
[1733326650083,0.55,3848.8,3847.0,2.59938]
[1733326650316,0.55,3848.6,3846.3,2.5999]
[1733326650613,0.55,3848.6,3846.4,2.59983]
[1733326650817,1.54,3848.7,3846.0,1.5352]
[1733326651002,1.54,3848.7,3846.1,0.1795223]
[1733326651003,0.154,3848.6,3846.1,0.1795223]
[1733326651195,1.54,3848.7,3846.1,0.20551505]
[1733326651375,1.54,3848.7,3846.2,5.19992]
[1733326651597,1.54,3848.7,3846.2,0.02599284]
[1733326651797,1.54,3848.7,3847.9,2.59878]
[1733326652117,1.54,3848.7,3846.2,0.02599284]
[1733326652118,1.54,3848.7,3848.1,3.0]
[1733326652274,1.54,3848.7,3848.1,2.89866]
[1733326652996,1.54,3848.7,3848.2,2.5986]
[1733326653170,1.54,3848.7,3848.1,0.3]
[1733326653682,1.54,3848.7,3845.8,0.27035648]
[1733326653885,0.55,3848.6,3845.8,2.8965569]
[1733326654099,0.55,3848.6,3847.2,2.59925]
[1733326654604,0.53185327,3848.4,3847.3,2.59918]
[1733326654812,0.55,3848.3,3847.3,2.59918]
[1733326655032,1.54,3848.7,3847.3,3.259918]
[1733326655239,3.2,3850.2,3848.1,2.59862]
[1733326655399,0.52593167,3849.3,3848.0,3.0]
[1733326655749,0.52593167,3849.3,3847.3,0.259918]
[1733326656149,2.3014,3849.7,3846.2,1.5825]
[1733326656331,2.5978,3849.4,3847.5,2.59903]
[1733326656537,2.3014,3849.7,3847.0,0.02599152]
[1733326656538,4.89906,3849.7,3847.0,0.02599152]